bitfinex-derivatives/quotes_ETHF0:USTF0_20250912
["timestamp","ask_amount","ask_price","bid_price","bid_amount"]
[1757652188826,0.3019,4523.5,4523.4,0.6455]
[1757652189437,0.811,4523.5,4523.4,0.4198]
[1757652189826,0.6105,4523.5,4523.4,0.6455]
[1757652190533,0.811,4523.5,4523.4,0.4198]
[1757652192639,0.811,4523.5,4523.2,0.223]
[1757652193132,0.811,4523.5,4522.8,0.2257]
[1757652193333,0.3086,4523.0,4522.9,0.6428]
[1757652193534,0.6105,4523.0,4522.9,0.8685]
[1757652194332,0.4173,4523.0,4522.9,0.8685]
[1757652195236,0.811,4523.0,4522.9,0.4198]
[1757652195540,0.811,4523.0,4522.9,0.4332]
[1757652195740,0.811,4523.0,4522.9,0.6428]
[1757652196547,0.811,4523.0,4522.9,0.8685]
[1757652197039,0.6178,4522.5,4522.4,0.2102]
[1757652197240,0.4173,4522.5,4522.4,0.8685]
[1757652197428,0.3019,4522.5,4522.4,0.8685]
[1757652198041,0.1154,4523.0,4522.5,0.2257]
[1757652198232,0.3086,4523.0,4522.9,0.4198]
[1757652198427,0.5091,4523.0,4522.9,0.4198]
[1757652198733,0.811,4523.0,4522.9,0.4198]
[1757652201134,0.6105,4523.0,4522.9,1.74095454]
[1757652202034,0.6105,4523.0,4522.9,0.6455]
[1757652203539,0.811,4523.0,4522.7,1.09545454]
[1757652203745,0.3019,4522.3,4522.0,1.96813426]
[1757652204043,0.6956,4522.1,4522.0,0.2102]
[1757652205043,0.4173,4522.0,4521.7,31.841]
[1757652205257,0.6956,4521.9,4521.8,0.223]
[1757652205549,0.3937,4521.9,4521.7,31.841]
[1757652205751,0.6956,4521.9,4521.8,0.223]
[1757652206850,0.3937,4521.9,4521.7,31.841]
[1757652207045,0.1154,4522.0,4521.7,31.841]
[1757652207046,0.3019,4521.8,4521.7,31.841]
[1757652207752,0.7026,4521.7,4521.6,0.223]
[1757652208145,0.7026,4521.7,4520.8,2.19383426]
[1757652208146,0.1174,4521.0,4520.8,2.19383426]
[1757652208345,0.1174,4521.5,4521.0,0.2259]
[1757652208651,0.1174,4521.5,4520.9,1.31845454]
[1757652208652,0.3086,4521.4,4521.3,0.6419]
[1757652209054,0.5079,4521.4,4521.3,0.6419]
[1757652209243,0.7087,4521.4,4521.3,0.2057]
[1757652210053,0.7087,4521.3,4521.2,1.30115454]
[1757652210250,0.7087,4521.3,4521.2,1.51145454]
[1757652213755,0.7087,4521.3,4521.2,0.416]
[1757652213954,0.7087,4521.3,4521.2,1.51145454]
[1757652214356,0.7087,4521.9,4521.8,0.416]
[1757652214559,0.5155,4522.5,4522.4,0.2057]
[1757652214853,0.8241,4522.5,4521.9,0.2259]
[1757652215055,0.6253,4522.0,4521.9,0.6419]
[1757652215452,0.426,4522.0,4521.9,0.6419]
[1757652215654,0.1154,4522.5,4521.9,0.6419]
[1757652215959,0.5079,4522.4,4522.3,0.416]
[1757652217459,0.7087,4522.4,4522.3,0.416]
[1757652219461,0.3086,4522.4,4522.3,0.8649]
[1757652220060,0.3086,4522.9,4522.8,0.6419]
[1757652220283,0.3086,4522.9,4522.8,1.73735454]
[1757652220460,0.5079,4522.9,4522.8,1.73735454]
[1757652221363,0.5079,4522.9,4522.8,1.51145454]
[1757652221668,0.7087,4522.9,4522.8,1.51145454]
[1757652221852,0.7087,4522.9,4522.8,0.416]
[1757652224167,0.7087,4522.9,4522.8,0.639]
[1757652225061,0.7087,4522.9,4522.8,0.223]
[1757652225458,0.7087,4522.9,4522.8,0.4287]
[1757652225661,0.4001,4522.9,4522.2,1.32135454]
[1757652225964,0.1174,4523.0,4522.2,0.2057]
[1757652225965,0.7087,4522.3,4522.2,0.2057]
[1757652226161,0.7087,4522.3,4522.2,0.223]
[1757652226865,0.1174,4522.5,4521.7,1.09545454]
[1757652226866,0.1174,4522.0,4521.7,1.09545454]
[1757652227059,0.7087,4521.8,4521.7,1.30115454]
[1757652227262,0.7087,4521.8,4521.7,1.52415454]
[1757652228170,0.7087,4521.8,4521.7,0.4287]
[1757652228371,0.3086,4521.8,4521.7,1.96035454]
[1757652228969,0.5079,4521.8,4521.7,1.96035454]
[1757652230170,0.5079,4521.8,4521.7,1.73735454]
[1757652230371,0.5079,4521.8,4521.7,1.96035454]
[1757652230670,0.7087,4521.8,4521.7,1.73445454]
[1757652233173,0.7087,4521.8,4521.7,1.31845454]
[1757652233363,0.7087,4521.8,4521.7,1.52415454]
[1757652234074,0.7087,4521.8,4521.7,1.30115454]
[1757652234263,0.7087,4521.8,4521.7,1.52415454]
[1757652234970,0.7087,4521.8,4521.7,0.4287]
[1757652235158,0.7087,4521.8,4521.4,1.09545454]
[1757652235362,0.5175,4521.5,4521.4,1.30115454]
[1757652235569,0.8261,4521.5,4521.4,1.52415454]
[1757652236672,0.8261,4521.5,4521.4,1.73445454]
[1757652242076,0.8261,4521.5,4521.4,1.52415454]
[1757652242377,0.8261,4521.5,4521.4,1.71675454]
[1757652242574,0.8261,4521.5,4521.4,1.94255454]
[1757652242770,0.426,4521.5,4521.4,1.94255454]
[1757652242982,0.3008,4521.9,4521.4,1.71675454]
[1757652243279,0.3008,4522.4,4521.8,1.48895454]
[1757652243473,0.6994,4522.4,4522.3,1.28805454]
[1757652243777,0.6994,4522.4,4522.3,1.71195454]
[1757652245375,0.3008,4522.4,4522.3,1.93775454]
[1757652245573,0.5077,4522.9,4522.8,0.6193]
[1757652245775,0.5077,4522.9,4522.8,2.20645391]
[1757652246469,0.5077,4522.9,4522.8,1.98065391]
[1757652247279,0.6994,4522.9,4522.8,1.98065391]
[1757652247778,0.6994,4522.9,4522.8,0.88519937]
[1757652247974,6.01595454,4522.9,4522.8,0.26869937]
[1757652249172,0.127,4522.5,4522.3,0.223]
[1757652249476,0.6994,4522.4,4522.3,0.223]
[1757652250076,0.6994,4522.4,4521.9,1.09545454]
[1757652250385,0.5256,4522.0,4521.9,1.29635454]
[1757652250576,0.5256,4522.0,4521.9,0.4239]
[1757652250577,0.8264,4522.0,4521.9,0.4239]
[1757652252672,0.6994,4521.5,4521.4,0.706]
[1757652252874,0.5077,4521.5,4521.4,0.929]
[1757652256183,0.6994,4521.5,4521.4,2.02445454]
[1757652257476,0.3008,4521.9,4521.4,1.71195454]
[1757652257684,0.5256,4522.0,4521.9,0.2009]
[1757652257870,0.5256,4522.0,4521.9,0.4239]
[1757652258077,0.5256,4522.0,4521.9,0.2009]
[1757652258276,0.8264,4522.0,4521.9,0.4239]
[1757652258684,0.8264,4522.0,4521.9,0.7364]
[1757652258884,0.3986,4521.4,4521.3,0.706]
[1757652259087,0.6994,4521.4,4521.3,2.02445454]
[1757652259577,0.6994,4521.4,4521.3,1.71195454]
[1757652259884,0.6994,4521.4,4521.3,2.02445454]
[1757652260373,0.6994,4521.4,4521.3,0.929]
[1757652261276,0.5077,4521.4,4521.3,1.19806941]
[1757652263885,0.6994,4522.0,4521.9,0.706]
[1757652264078,0.5077,4522.1,4522.0,0.706]
[1757652264273,0.5077,4522.4,4522.3,0.3935]
[1757652264475,1.98187449,4522.4,4522.3,0.26906941]
[1757652265082,0.6994,4522.4,4522.3,0.26906941]
[1757652266187,0.6994,4522.4,4522.3,0.97506941]
[1757652270685,0.6994,4522.4,4522.3,0.46996941]
[1757652270890,0.6994,4522.4,4522.3,0.26906941]
[1757652270891,1.98187449,4522.4,4522.3,0.26906941]
[1757652273296,5.98187449,4522.4,4522.3,0.26906941]
[1757652276789,5.98187449,4522.4,4521.6,0.3017]
[1757652276988,0.1246,4522.0,4521.7,0.26897658]
[1757652277290,0.6926,4521.8,4521.7,0.2051]
[1757652277487,0.6926,4521.8,4521.7,0.47414972]
[1757652278787,0.6926,4521.8,4521.7,0.98004972]
[1757652281690,0.6926,4521.8,4521.7,0.67834972]
[1757652283701,0.127,4522.5,4521.8,0.3017]
[1757652283996,0.6926,4522.4,4522.3,0.2051]
[1757652284190,0.6926,4522.4,4522.3,0.47414972]
[1757652285605,0.6926,4522.4,4522.3,0.98004972]
[1757652285793,0.6926,4522.9,4522.8,0.4093]
[1757652285993,1.23632322,4522.9,4522.8,0.98004972]
[1757652286294,0.1246,4522.5,4522.1,0.20304972]
[1757652286492,0.2877,4522.4,4522.1,0.20304972]
[1757652286697,0.1922,4522.2,4522.1,0.20304972]
[1757652286897,0.1246,4521.5,4521.4,1.96813426]
[1757652287099,0.27407073,4521.5,4521.4,0.223]
[1757652287597,0.39867073,4521.5,4521.4,0.223]
[1757652287804,0.3168,4521.5,4521.3,1.96813426]
[1757652287986,0.3168,4521.5,4521.4,0.223]
[1757652288296,0.1246,4521.0,4520.9,1.96813426]
[1757652288492,0.1246,4521.0,4520.9,2.19113426]
[1757652288987,0.1246,4521.0,4520.9,0.223]
[1757652289298,0.6045,4521.0,4520.9,0.223]
[1757652290096,0.2877,4520.9,4520.8,33.81813426]
[1757652290298,0.2877,4520.9,4520.8,34.04113426]
[1757652291200,0.2877,4521.4,4520.8,38.04113426]
[1757652291503,0.2877,4521.4,4520.8,34.04113426]
[1757652291800,0.2877,4521.4,4521.1,1.28247449]
[1757652292790,0.2877,4521.4,4521.2,0.223]
[1757652293095,0.4799,4521.4,4521.2,0.223]
[1757652293291,0.2877,4521.3,4521.2,0.223]
[1757652293902,0.4799,4521.3,4521.2,0.223]
[1757652294094,0.6926,4521.3,4521.2,0.223]
[1757652294494,0.1246,4521.0,4520.8,33.81813426]
[1757652294701,0.4123,4521.0,4520.9,0.223]
[1757652295800,0.4123,4521.0,4520.8,33.81813426]
[1757652295801,0.2877,4520.9,4520.8,33.81813426]
[1757652295994,0.2877,4520.9,4520.8,34.04113426]
[1757652296301,0.2877,4520.9,4520.8,32.073]
[1757652296996,0.08032959,4520.9,4520.8,32.073]
[1757652297198,0.3168,4521.5,4521.4,0.4093]
[1757652297497,0.3168,4521.5,4521.4,0.6323]
[1757652297894,0.5295,4521.5,4521.4,0.6323]
[1757652298306,0.5295,4521.5,4521.4,0.91503515]
[1757652298802,0.5295,4521.5,4521.4,0.91503612]
[1757652299209,0.8242,4521.5,4521.4,0.91503612]
[1757652300005,0.8242,4521.5,4521.4,0.48783612]
[1757652300303,0.8242,4521.5,4521.4,0.28273612]
[1757652300897,0.8242,4521.5,4521.4,3.612e-05]
[1757652301294,4.8242,4521.5,4521.4,3.612e-05]
[1757652302909,0.8242,4521.5,4521.4,0.19943612]
[1757652303605,0.8242,4521.5,4521.4,3.612e-05]
[1757652304005,0.5295,4521.5,4521.4,3.612e-05]
[1757652305106,0.5295,4521.5,4521.4,0.1994]
[1757652305706,0.8242,4521.5,4521.4,0.1994]
[1757652306303,0.8242,4521.5,4521.4,0.7211]
[1757652308611,0.8242,4521.5,4521.4,0.4095]
[1757652312310,0.8242,4521.5,4521.4,0.7211]
[1757652312902,0.8242,4521.5,4521.4,0.47564145]
[1757652313115,0.8242,4521.5,4521.4,0.27624145]
[1757652313408,0.8242,4521.5,4521.4,4.145e-05]
[1757652313609,4.8242,4521.5,4521.4,4.145e-05]
[1757652313812,5.36695792,4521.5,4521.4,4.145e-05]
[1757652316111,4.8242,4521.5,4521.4,4.145e-05]
[1757652316315,5.36678481,4521.5,4521.4,4.145e-05]
[1757652317608,5.36678481,4521.5,4520.4,0.223]
[1757652317817,0.8269,4520.5,4520.4,0.223]
[1757652322010,0.8269,4520.5,4520.0,0.117]
[1757652322412,0.8269,4520.5,4520.1,0.3116]
[1757652323122,0.8269,4520.5,4519.8,0.223]
[1757652323316,0.8269,4520.5,4519.9,0.3116]
[1757652326918,0.1252,4520.0,4519.9,0.3116]
[1757652327119,0.7017,4519.1,4519.0,1.75083733]
[1757652327422,0.7017,4519.1,4519.0,0.4095]
[1757652327624,0.7017,4519.1,4519.0,0.7211]
[1757652329328,0.7017,4519.1,4519.0,0.3116]
[1757652329821,0.5056,4518.7,4518.6,0.7053]
[1757652330530,0.7121,4518.7,4518.6,0.7053]
[1757652338825,0.4031,4518.7,4518.3,0.223]
[1757652339030,0.4031,4518.5,4518.4,0.7053]
[1757652339229,0.7121,4518.5,4518.4,0.7053]
[1757652339529,0.7121,4519.1,4519.0,0.4056]
[1757652339732,0.7121,4519.1,4519.0,0.7053]
[1757652340727,0.1252,4520.0,4519.1,0.2997]
[1757652340934,0.7121,4519.9,4519.8,0.5111]
[1757652341538,1.80896361,4519.9,4519.8,0.5111]
[1757652342837,1.80896361,4519.9,4519.0,1.22256361]
[1757652343035,0.1966,4519.2,4519.1,0.7053]
[1757652343333,0.5056,4519.2,4519.1,0.7053]
[1757652344230,0.7121,4519.2,4519.1,0.7053]
[1757652344637,0.5056,4519.6,4519.5,0.4056]
[1757652344837,0.7121,4519.6,4519.5,0.7053]
[1757652346741,0.1204,4519.5,4519.1,0.2997]
[1757652346941,0.7121,4519.2,4519.1,0.5111]
[1757652347139,0.7121,4519.2,4519.1,0.7053]
[1757652349838,0.7121,4519.2,4519.1,0.5111]
[1757652350849,0.7121,4519.2,4519.1,0.7053]
[1757652352753,1.80896361,4519.2,4519.1,0.7053]
[1757652353252,1.80896361,4519.2,4519.1,0.5111]
[1757652353454,1.80896361,4519.2,4519.1,0.2114]
[1757652353646,1.80896361,4519.2,4519.1,0.5111]
[1757652353950,1.80896361,4519.2,4519.1,0.2114]
[1757652354153,1.80896361,4519.2,4518.6,0.2997]
[1757652355752,0.1204,4518.5,4518.0,1.96813426]
[1757652355961,0.7121,4518.1,4518.0,0.5313]
[1757652356262,0.1966,4518.1,4518.0,0.5313]
[1757652356448,0.309,4518.4,4518.0,0.831]
[1757652356756,0.309,4518.7,4518.1,0.2997]
[1757652356947,0.4031,4518.2,4518.1,0.7053]
[1757652357151,0.7121,4518.2,4518.1,0.7053]
[1757652357750,0.4906,4518.9,4518.8,0.1957]
[1757652357949,0.6874,4518.9,4518.8,0.7197]
[1757652359961,6.33039711,4518.9,4517.6,0.3179]
[1757652360163,1.78426361,4518.4,4518.3,0.1957]
[1757652360361,1.78426361,4518.4,4518.3,0.5136]
[1757652363768,0.2017,4517.6,4517.5,0.8454]
[1757652364366,0.2889,4517.8,4517.6,0.3179]
[1757652364557,0.4906,4517.8,4517.7,0.7197]
[1757652366271,0.2017,4517.8,4517.7,0.7197]
[1757652366461,0.2889,4518.1,4517.7,0.4018]
[1757652366660,1.49536361,4518.3,4518.2,0.1957]
[1757652366869,1.49536361,4518.3,4518.2,0.5136]
[1757652367369,1.78426361,4518.3,4518.2,0.1957]
[1757652367966,1.78426361,4518.3,4518.2,0.5136]
[1757652369865,0.121,4518.0,4517.9,0.1957]
[1757652370056,0.2017,4518.0,4517.9,0.7197]
[1757652370265,1.09686361,4518.9,4518.1,0.3179]
[1757652370565,0.6874,4518.8,4518.7,0.1957]
[1757652371470,0.6874,4518.8,4518.5,0.3179]
[1757652371867,1.78426361,4518.6,4518.5,0.3179]
[1757652372066,0.121,4518.5,4518.0,0.1194]
[1757652372264,0.4906,4518.1,4518.0,0.8391]
[1757652372766,0.6874,4518.1,4518.0,0.5136]
[1757652372967,0.6874,4518.1,4518.0,0.1957]
[1757652374071,0.6874,4518.1,4518.0,0.5136]
[1757652374772,0.6874,4518.1,4518.0,0.7197]
[1757652377168,0.6874,4518.1,4518.0,0.5136]
[1757652378073,0.6874,4518.1,4517.6,0.3179]
[1757652378270,0.6874,4517.7,4517.6,0.7197]
[1757652379167,0.2017,4517.7,4517.6,0.7197]
[1757652379577,0.2889,4518.0,4517.6,0.7197]
[1757652379763,0.2889,4518.0,4517.7,0.3179]
[1757652379967,0.4906,4518.0,4517.9,0.7197]
[1757652381175,0.2017,4518.0,4517.9,0.7197]
[1757652381371,0.2017,4518.0,4517.9,0.5136]
[1757652381372,1.90526361,4518.0,4517.9,0.5136]
[1757652381678,1.90526361,4518.0,4517.9,0.7197]
[1757652381679,0.6874,4518.0,4517.9,0.7197]
[1757652383274,0.2889,4517.9,4517.3,0.3179]
[1757652383573,0.2889,4517.9,4517.4,0.3179]
[1757652383777,0.4906,4517.9,4517.8,0.7197]
[1757652384373,0.6874,4517.9,4517.8,0.7197]
[1757652385174,0.4906,4518.4,4518.3,0.4018]
[1757652385381,0.4906,4518.4,4518.3,1.00561611]
[1757652385573,0.6874,4518.4,4518.3,1.00561611]
[1757652386577,0.6874,4518.4,4518.3,0.79951611]
[1757652389273,0.6874,4518.4,4518.3,1.00561611]
[1757652389474,0.1204,4519.0,4518.3,1.00561611]
[1757652389676,0.1204,4519.0,4517.5,0.1194]
[1757652389677,0.54709471,4518.9,4518.8,0.7034]
[1757652389879,0.54709471,4518.9,4518.8,0.98931611]
[1757652390081,0.4964,4519.2,4519.1,0.7034]
[1757652390278,0.4964,4519.2,4519.1,0.98931611]
[1757652390581,0.7068,4519.2,4519.1,0.98931611]
[1757652392183,0.2056,4519.2,4519.1,0.98931611]
[1757652392677,0.2908,4519.5,4519.1,0.98931611]
[1757652392881,0.537,4520.0,4519.9,0.2087]
[1757652393081,1.0834117,4520.0,4519.9,0.78871611]
[1757652393281,0.537,4520.0,4519.9,0.78871611]
[1757652393478,0.8278,4520.0,4519.9,0.78871611]
[1757652395073,2.65839794,4520.0,4519.9,0.28591611]
[1757652395280,2.1124506,4520.0,4519.9,0.28591611]
[1757652396776,0.8278,4520.0,4519.9,0.78871611]
[1757652397384,0.8278,4520.0,4519.9,0.28591611]
[1757652398084,0.8295,4520.0,4519.9,0.28591611]
[1757652398878,0.8295,4520.0,4519.9,0.78871611]
[1757652399090,0.7068,4520.0,4519.9,0.98931611]
[1757652400186,1.4073506,4520.5,4519.9,0.98931611]
[1757652400379,0.416,4520.5,4520.4,0.7034]
[1757652400579,0.416,4520.5,4520.4,0.98931611]
[1757652400987,0.7068,4520.5,4520.4,0.98931611]
[1757652401587,0.416,4520.5,4520.4,0.49461611]
[1757652401882,1.4073506,4521.0,4520.4,0.69521611]
[1757652402079,0.75029861,4520.9,4520.8,0.2087]
[1757652402385,0.96069861,4520.9,4520.5,0.2941]
[1757652402586,0.416,4520.9,4520.6,0.28442556]
[1757652402785,1.4073506,4521.0,4520.7,0.98782202]
[1757652402786,0.7068,4520.8,4520.7,0.98782202]
[1757652404690,0.7068,4520.8,4520.7,0.78722202]
[1757652405787,0.2056,4520.8,4520.7,0.98782202]
[1757652406089,0.7068,4520.8,4520.7,0.98782202]
[1757652407585,1.7006506,4521.2,4521.1,0.7034]
[1757652407893,0.416,4521.2,4521.1,0.7034]
[1757652408192,0.416,4521.2,4521.1,0.99446762]
[1757652408193,0.7068,4521.2,4521.1,0.99446762]
[1757652409090,0.7068,4521.2,4521.1,0.7034]
[1757652411391,0.7068,4521.2,4521.1,0.994247]
[1757652415088,0.7068,4521.2,4521.1,0.499547]
[1757652415287,0.7068,4521.2,4520.5,0.2941]
[1757652415491,1.9914506,4520.7,4520.6,0.79378154]
[1757652415892,1.9914506,4520.7,4520.6,0.9943835]
[1757652416592,1.9914506,4520.7,4520.6,0.2909835]
[1757652417798,1.9914506,4520.7,4520.6,0.29129835]
[1757652418096,1.9914506,4520.7,4520.6,0.29129716]
[1757652418489,2.2154506,4520.7,4520.6,0.29129716]
[1757652418890,0.9308,4520.7,4520.6,0.29129716]
[1757652419993,0.9308,4520.7,4520.6,0.78169716]
[1757652421491,0.7068,4520.7,4520.6,0.78169716]
[1757652421696,0.7068,4520.7,4520.6,0.99389716]
[1757652422097,0.7068,4520.7,4520.6,0.29129716]
[1757652422503,5.47329025,4520.7,4520.6,0.29129716]
[1757652422800,5.25208025,4520.7,4520.6,0.29129716]
[1757652423892,5.25208025,4520.7,4519.6,0.2905]
[1757652424092,0.224,4520.9,4519.6,0.4904]
[1757652424093,0.7043,4519.7,4519.6,0.4904]
[1757652424495,0.7043,4519.7,4519.0,31.9883]
[1757652424496,0.2918,4519.6,4519.1,0.2905]
[1757652424691,0.4989,4519.2,4519.1,0.7026]
[1757652425804,0.2071,4519.2,4519.1,0.7026]
[1757652428101,0.2918,4519.5,4519.2,0.2905]
[1757652428303,1.4063506,4520.0,4519.2,0.2905]
[1757652428502,0.2918,4519.9,4519.2,0.2905]
[1757652435304,0.4989,4519.3,4519.2,0.7026]
[1757652435605,0.7043,4519.3,4519.2,0.7026]
[1757652435905,0.7043,4519.3,4519.2,0.99050188]
[1757652443919,0.4989,4519.9,4519.8,0.7026]
[1757652444115,1.04384115,4519.9,4519.8,0.99050188]
[1757652444321,1.24924115,4519.9,4519.8,0.99050188]
[1757652444620,2.34646106,4519.9,4519.8,0.99050188]
[1757652445420,2.34646106,4519.9,4519.8,0.48780188]
[1757652445621,2.34646106,4519.9,4519.8,0.28790188]
[1757652447528,6.56771106,4519.9,4519.0,0.2905]
[1757652447721,1.80051991,4519.1,4518.0,0.123]
[1757652447927,1.49961991,4518.7,4518.6,0.7025]
[1757652450723,1.49961991,4518.7,4518.6,0.5029]
[1757652450724,1.80051991,4518.7,4518.6,0.5029]
[1757652453424,1.80051991,4518.7,4518.6,0.311]
[1757652453625,1.80051991,4518.7,4518.1,0.311]
[1757652453825,0.7033,4518.2,4518.1,0.5029]
[1757652454026,0.4024,4518.2,4518.1,0.7025]
[1757652454220,0.7033,4518.2,4518.1,0.7025]
[1757652455231,0.7033,4518.2,4517.6,0.311]
[1757652455430,1.80051991,4517.7,4517.6,0.311]
[1757652455739,1.80051991,4517.7,4517.6,0.5029]
[1757652456537,1.80051991,4517.7,4517.6,0.311]
[1757652457233,1.80051991,4517.7,4517.6,0.5029]
[1757652463738,1.49961991,4517.7,4517.6,0.7025]
[1757652463938,0.3009,4518.0,4517.6,0.7025]
[1757652463939,1.09721991,4518.0,4517.6,0.7025]
[1757652464138,1.09721991,4518.0,4517.7,0.311]
[1757652464437,0.2006,4517.8,4517.7,0.7025]
[1757652464641,0.3009,4518.3,4517.8,0.311]
[1757652464844,1.49961991,4517.9,4517.8,0.7025]
[1757652465035,1.80051991,4517.9,4517.8,0.7025]
[1757652466542,1.80051991,4517.9,4517.8,0.5029]
[1757652468242,1.80051991,4517.9,4517.8,0.311]
[1757652469741,1.80051991,4517.9,4517.8,0.5029]
[1757652470546,1.80051991,4517.9,4517.8,0.7025]
[1757652471532,1.80051991,4517.9,4517.8,0.311]
[1757652471944,1.80051991,4517.9,4517.0,0.123]
[1757652472137,0.3009,4517.8,4517.2,0.7025]
[1757652472343,0.2006,4517.6,4517.5,0.3106]
[1757652472539,0.2006,4517.6,4517.5,0.5102]
[1757652472847,0.2006,4517.6,4517.5,0.8212]
[1757652474048,1.09721991,4517.8,4517.7,0.3915]
[1757652474248,1.09721991,4517.8,4517.7,0.7025]
[1757652474439,1.29781991,4517.8,4517.7,0.7025]
[1757652474743,1.49961991,4517.8,4517.7,0.7025]
[1757652474943,1.80081991,4517.8,4517.7,0.7025]
[1757652477640,1.49961991,4517.8,4517.7,0.7025]
[1757652481149,1.80111991,4517.8,4517.7,0.5029]
[1757652482451,2.34926563,4517.8,4517.1,0.2924]
[1757652482645,1.09721991,4517.3,4517.2,0.1927]
[1757652482857,1.51261991,4517.3,4517.2,0.4851]
[1757652483254,1.09721991,4517.6,4517.5,0.1178]
[1757652483561,1.85599887,4517.6,4517.5,0.8114]
[1757652483851,2.36249887,4517.6,4517.5,0.8114]
[1757652484051,2.36249887,4517.6,4517.5,0.6029]
[1757652484354,2.36249887,4517.6,4517.5,0.4851]
[1757652485848,2.36249887,4517.6,4517.5,0.2924]
[1757652486348,2.36249887,4517.6,4517.5,0.4851]
[1757652486851,2.36249887,4517.6,4517.5,0.6029]
[1757652489053,2.36249887,4517.6,4517.5,0.4851]
[1757652489252,2.36249887,4517.6,4517.5,0.2924]
[1757652491254,2.36249887,4517.6,4517.1,0.2924]
[1757652491459,0.4154,4517.3,4517.2,0.4851]
[1757652491758,0.7169,4517.3,4517.2,0.4851]
[1757652492554,1.51261991,4517.3,4517.2,0.6936]
[1757652493463,0.2104,4517.3,4517.2,0.6936]
[1757652493763,0.9409,4518.0,4517.9,0.4851]
[1757652493954,2.36249705,4518.0,4517.9,0.4851]
[1757652494257,2.36249705,4518.0,4517.5,0.1178]
[1757652494258,0.3015,4518.8,4518.0,0.1178]
[1757652494458,1.2652106,4518.7,4518.6,0.4851]
[1757652495265,2.36243051,4518.7,4518.6,0.4851]
[1757652496158,0.5483106,4518.7,4518.6,1.79081991]
[1757652496459,0.2104,4519.4,4519.3,0.6936]
[1757652496764,0.75840128,4519.4,4519.3,0.6936]
[1757652496964,1.85562119,4519.4,4519.3,0.98443832]
[1757652497261,1.30761991,4519.4,4519.3,0.98443832]
[1757652498655,0.2104,4519.4,4519.3,0.98443832]
[1757652498860,0.2104,4519.6,4519.5,0.8114]
[1757652499054,0.2104,4519.6,4519.5,1.10223832]
[1757652500757,0.4154,4519.6,4519.5,1.10223832]
[1757652502065,1.51261991,4519.6,4519.5,1.10223832]
[1757652502261,1.51261991,4519.6,4519.5,1.10929559]
[1757652502862,0.7169,4520.1,4520.0,0.4012]
[1757652503164,1.81411991,4520.1,4520.0,0.59029559]
[1757652503367,1.81411991,4520.1,4520.0,0.78299559]
[1757652504164,1.81411991,4520.1,4520.0,0.29789559]
[1757652504763,0.7169,4520.1,4520.0,0.78299559]
[1757652505063,0.23290673,4521.0,4520.1,0.2924]
[1757652505064,0.0575,4521.0,4520.1,0.2924]
[1757652505376,1.09721991,4520.4,4520.3,0.6936]
[1757652505559,1.09721991,4520.4,4520.3,0.99149559]
[1757652505756,0.2104,4520.5,4520.4,0.6936]
[1757652505960,1.30761991,4520.8,4520.7,0.6936]
[1757652506160,1.51261991,4520.8,4520.7,0.99149559]
[1757652506363,0.4154,4520.8,4520.7,0.99149559]
[1757652506564,0.7169,4520.8,4520.3,0.2924]
[1757652506759,0.4154,4520.8,4520.4,0.29714251]
[1757652506964,0.2104,4520.1,4520.0,0.519]
[1757652507165,0.4154,4520.1,4520.0,0.81611224]
[1757652507573,0.4154,4520.1,4520.0,1.10851224]
[1757652514271,1.99461024,4520.1,4520.0,0.70731224]
[1757652514575,1.99461024,4520.1,4520.0,0.2924]
[1757652515574,0.4137,4519.7,4519.6,0.3135]
[1757652515772,0.4137,4519.7,4519.6,0.61030378]
[1757652515773,1.99291024,4519.7,4519.6,0.61030378]
[1757652515975,1.99291024,4519.7,4519.0,0.1178]
[1757652516174,1.69701024,4519.7,4519.1,0.29690288]
[1757652516371,0.4137,4519.3,4519.2,0.81140288]
[1757652516671,0.7096,4519.3,4519.2,0.81140288]
[1757652517573,0.7096,4519.3,4519.2,0.81156765]
[1757652518882,0.7096,4519.3,4519.2,1.00326765]
[1757652519083,0.4137,4519.3,4519.2,1.00326765]
[1757652521583,0.5076,4520.4,4520.3,0.7062]
[1757652521777,0.2117,4520.4,4520.3,0.7062]
[1757652521978,0.7096,4520.4,4520.3,0.7062]
[1757652522276,0.7096,4520.1,4520.0,0.4332]
[1757652522474,1.99291024,4520.1,4520.0,0.61115403]
[1757652522673,0.7096,4520.1,4520.0,0.93185403]
[1757652522874,1.99291024,4520.1,4520.0,0.93185403]
[1757652524078,1.69701024,4520.1,4520.0,1.12355403]
[1757652524681,1.99291024,4520.1,4520.0,1.12355403]
[1757652524879,1.69701024,4520.1,4520.0,1.12355403]
[1757652525080,1.28331024,4520.5,4520.1,0.3135]
[1757652525277,1.69701024,4520.5,4520.4,0.7062]
[1757652525478,1.69701024,4520.5,4520.4,1.00436413]
[1757652525479,2.24431978,4520.5,4520.4,1.00436413]
[1757652525671,1.69701024,4520.5,4520.4,1.00436413]
[1757652525874,1.69701024,4520.5,4520.4,0.81266413]
[1757652525875,1.99291024,4520.5,4520.4,0.81266413]
[1757652526076,2.5404652,4520.5,4520.4,0.81266413]
[1757652526683,2.5404652,4520.5,4520.4,0.29816413]
[1757652527085,2.5404652,4520.5,4520.4,0.81266413]
[1757652528386,2.5404652,4520.5,4520.4,0.61166413]
[1757652528984,2.5404652,4520.5,4520.4,0.81266413]
[1757652529186,2.2445652,4520.5,4520.4,1.00436413]
[1757652529482,2.5404652,4520.5,4520.4,1.00436413]
[1757652530186,2.5404652,4520.5,4520.4,0.61166413]
[1757652530581,2.5404652,4520.5,4519.5,0.1197]
[1757652530582,6.88358521,4520.5,4519.6,0.3135]
[1757652530787,1.29291024,4519.7,4519.6,0.5145]
[1757652531178,1.29291024,4519.7,4519.6,0.7062]
[1757652532279,1.29591024,4519.7,4519.6,0.3135]
[1757652532479,1.84380272,4519.7,4519.6,0.3135]
[1757652535397,1.84080272,4519.7,4519.6,0.3135]